Workbook

Sheet Instructivo
A1: CRITERIO DE PRIORIZACIÓN DE TRÁMITES ADMINISTRATIVOS
A2: Instructivo
A3: Consideraciones generales
A5: En las hojas “COSTO DE ADMINISTRACIÓN PÚBLICA”y “RESUMEN” para añadir más trámites y que apliquen las fórmulas, se deberá seleccionar la primera fila y copiarla una por cada trámite de la entidad
A7: Todas las hojas tienen columnas de color celeste, en las cuales NO deben ingresar valores ya que contienen fórmulas.
A8: Para la carga en GOB.EC. La institución debe recordar que el peso máximo del archivo es de 2 MB.
A9: Esquema de puntuación
A10: Para priorizar un trámite, se realizará un análisis de criterios básicos y adicionales basado en información que disponen las instituciones sujetas a esta norma técnica. Cada criterio será puntuado según los lineamientos presentes en esta norma.
A11: a) Demanda Anual
A12: Considerará el volumen o frecuencia de las solicitudes que ingresan al año a cada institución para la gestión de un trámite en particular.
A13: La identificación del volumen anual de los trámites se realizará a través de sus registros de transacciones y/o el número de visitas de consulta de información realizadas a través de páginas web institucionales.
A14: Para realizar el registro realice lo siguiente:
A15: 1.- Seleccione la hoja DEMANDA ANUAL
A16: 2.- Ingrese los trámites de la institución registrando el identificador y nombre en las columnas respectivas.
A17: 3.- Para cada trámite debe especificar en la columna DEMANDA ANUAL el volumen o frecuencia anual, de acuerdo a lo mencionado anteriormente.
A18: 4.- Una vez terminado el llenado solicitado presione el botón PUNTUACIÓN, se ordenara de menor a mayor.
A19: 5.- Usted visualizará el ordenamiento de los trámites ingresados de acuerdo al número de volumen o frecuencia anual.
A20: 6.- Así mismo, usted visualizará el puntaje obtenido en la columna PUNTUACIÓN de acuerdo al grupo obtenido por cada trámite de acuerdo al número de volumen o frecuencia anual cosiderando lo siguiente: ** Primer grupo (trámites con menor demanda no incluye los trámites con demanda 0 ) = 3 ** Segundo grupo (trámites con demanda intermedia) = 6 ** Tercer grupo (trámites con mayor demanda) = 10
A21: Cada vez que requiera actualizar el puntaje presionando el botón puntuación, debe verificar que la celda de la columna puntaje se encuentren vacías, es decir, se debe borrar cualquier valor de puntaje obtenido previamente.
A22: b) Volumen de quejas asociadas a un trámite:
A23: Considerará la cantidad de quejas recibidas en relación a un trámite durante un año. Estas quejas deberán estar documentadas en medios físicos y/o digitales.
A24: Para determinar la puntuación, se colocará en una tabla todos los trámites con sus correspondientes quejas ordenándose de menor a mayor. Se dividirá en 2 partes en los que cada grupo contenga la misma cantidad de trámites.
A25: Para realizar el registro realice lo siguiente:
A26: 1.- Seleccione la hoja VOLUMEN DE QUEJAS
A27: 2.- Ingrese los trámites de la institución registrando el identificador y nombre en las columnas respectivas. Si usted requiere de acuerdo al número de trámites copie filas adicionales que estén dentro del cuadro
A28: 3.- Para cada trámite debe especificar en la columna VOLUMEN QUEJAS el número de quejas anual, de acuerdo a lo mencionado anteriormente.
A29: 4.- Una vez terminado el llenado solicitado presione el botón PUNTUACIÓN.
A30: 5.- Usted visualizará el ordenamiento de los trámites ingresados de acuerdo al número de volumen o frecuencia anual.
A31: 6.- Así mismo, usted visualizará el puntaje obtenido en la columna PUNTUACIÓN de acuerdo al grupo obtenido por cada trámite de acuerdo al número de volumen o frecuencia anual cosiderando lo siguiente: La puntuación se basará en los siguientes grupos: ** Primer grupo (trámites con menor cantidad de quejas, no incluye los trámites con queja 0 ) = 4 ** Segundo grupo (trámites con mayor porcentaje de quejas) = 10
A32: El valor del volumen de quejas no debe ser superior al valor del volumen de la demana, no le permitirá registrar un valor.
A33: c) Costo para la administración pública:
A34: En cada trámite, basado en un caso estándar, se deberá estimar el costo incurrido en el costo de personal y recursos necesarios para su atención desde que el administrado entregó todos los requisitos hasta que la institución entregue el producto, respuesta o servicio requerido en el trámite. Se considerará:
A35: • Costo de personal:
A36: Costo del personal para atender el trámite, se excluyen actividades realizadas automáticamente o que dependen del administrado. El tiempo deberá considerar únicamente el tiempo efectivo de trabajo del personal, no debe considerar el tiempo de espera o de movimiento.
A37: • Costo de recursos:
A38: Se deberá considerar el costo directo en el que la institución debe incurrir para atender un trámite. Se debe considerar los insumos o materia prima necesaria u cualquier otro que la institución considere pertinente.
A39: Para realizar el registro realice lo siguiente:
A40: 1.- Seleccione la hoja COSTO ADMINISTRACIÓN PÚBLICA
A41: 2.- Ingrese los trámites de la institución registrando el identificador y nombre en las columnas respectivas. Si usted requiere de acuerdo al número de trámites copie filas adicionales que estén dentro del cuadro
A42: 3.- Para calcular el tiempo de las actividades, utilizar la hoja AUXILIAR COSTO ADMINISTRACIÓN donde deberá listar todas las actividades que realiza la institución en un caso estándar y asignar el tiempo mínimo que toma cada actvidad (en horas). El tiempo total de las actividades, deberá ingresar en la correspondiente celda de la hoja COSTO ADMINISTRACIÓN PÚBLICA
A43: 4.- En función de la información registrada en el paso 3, la matriz entregará el costo del personal
A44: 5.- Completar la columna "Costo recursos", en la cual ingresará el costo directo en el que incurre la institución para entregar el trámite. En este valor se considerarán los valores correspondientes a insumos y/o materia prima mínimos que se invierten por cada trámite (no se considera mano de obra)
A45: 6.- La columna "Costo para la adm. pública" mostrará el costto de este criterio para cada trámite
A46: 7,- Para que la fórmula funcione debe arrastrar hacia abajo al último de los támites ingresados, no copiar
A47: 7.- Una vez que disponga del Costo para la administración pública, presionar el botón "GENERAR".
A48: 8. Visualizar la hoja “RESUMEN DE COSTO AP” en la que va a encontrar copiada las celdas necesarias para el ordenamiento y puntuación de las mismas al presionar el botón “PUNTUACIÓN”
A50: d) Tiempo de respuesta:
A51: Considerará los tiempos que a las instituciones les toma dar respuesta a un trámite desde que reciben la solicitud del administrado hasta la finalización del mismo. Para la definición del tiempo se considerará un caso estándar.
A52: Para determinar la puntuación, se colocará en una tabla todos los trámites con el tiempo de respuesta, ordenándose de menor a mayor. Se dividirá en 4 grupos, en los que cada uno contenga la misma cantidad de trámites.
A53: Para realizar el registro realice lo siguiente:
A54: 1.- Seleccione la hoja TIEMPO DE RESPUESTA
A55: 2.- Ingrese los trámites de la institución registrando el identificador y nombre en las columnas respectivas. Si usted requiere de acuerdo al número de trámites copie filas adicionales que estén dentro del cuadro
A56: 3.- Para cada trámite debe especificar en la columna TIEMPO RESPUESTA el tiempo, de acuerdo a lo mencionado anteriormente.
A57: 4.- Una vez terminado el llenado solicitado presione el botón PUNTUACIÓN.
A58: 5.- Usted visualizará el ordenamiento de los trámites ingresados de acuerdo al número de volumen o frecuencia anual.
A59: 6.- Así mismo, usted visualizará el puntaje obtenido en la columna PUNTUACIÓN de acuerdo al grupo obtenido por cada trámite de acuerdo al número de volumen o frecuencia anual cosiderando lo siguiente: La puntuación considera lo siguiente: ** Primer grupo (menor o igual a 40 horas laboralres) = 0 ** Segundo grupo mayor 40 horas laboralres) = 30
A60: e) Canal de atención:
A61: Considerará los canales de atención a través de los cuales el administrado puede iniciar el trámite.
A62: Para realizar el registro realice lo siguiente:
A63: 1.- Seleccione la hoja CANAL ATENCIÓN
A64: 2.- Ingrese los trámites de la institución registrando el identificador y nombre en las columnas respectivas. Si usted requiere de acuerdo al número de trámites copie filas adicionales que estén dentro del cuadro
A65: 3.- Para cada trámite debe seleccionar el canal de atención del trámite en la columna CANAL ATENCIÓN, que pueden ser: El trámite se puede completar totalmente en línea: Se considera trámite totalmente en línea cuando el administrado no requiere realizar ninguna interacción presencial con la institución = 0 El trámite no se puede completar totalmente en línea: Se considera este caso, cuando el trámite incluye al menos una actividad, incluido mecanismos de pago, en la que el administrado deba acudir presencialmente a la institución, para la realización de dicho trámite. Los trámites presenciales se consideran dentro de esta categoría = 10
A66: 4.- De acuerdo a la selección usted obtendrá la puntuación del trámite que se visualizará en la columna PUNTUACIÓN.
A68: f) Resumen
A69: En esta hoja deberá consolidar todas las puntuaciones obtenidas para cada trámite en los criterios a) hasta e). Adicionalmente deberá analizar los criterios adicionales que dispone la norma técnica, para estos últimos solamente deberá seleccionar en la celda correspondiente y la matriz asignará la puntuación adicional. Los criterios que deberá considerar son: - NECESIDADES CIUDADANAS: Si la institución ha implementado mecanismos para identificar necesidades ciudadanas respecto al trámite, seleccionar "SI", caso contrario, seleccionar "NO" - SUSCEPTIBILIDAD A CORRUPCIÓN: Si la institución dispone de información documentada sobre presuntos actos de corrupción, seleccionar "SI", caso contrario, seleccionar "NO" - VOLUMEN DE DEVOLUCIONES: Si la institución posee documentación sobre devoluciones del trámite en una cantidad significativa, seleccionar "SI", caso contrario, seleccionar "NO" Para que funcione la lista depelgable debe arrastrar la lista y la puntuación hacia abajo al último de los támites ingresados, no copiar
A70: En la columna puntaje total se realizará la sumatoria de los valores de los criterios básicos y adicionales. Este valor deberá registrarse en la plataforma GOB.EC

Sheet DEMANDA ANUAL
A1: PRIORIZACIÓN DE TRÁMITES ADMINISTRATIVOS
A2: DEMANDA ANUAL
A4: IDENTIFICADOR | B4: TRÁMITE | C4: DEMANDA ANUAL | D4: PUNTAJE
A5: 8 | B5: Atención de solicitudes de acceso a la información pública | C5: 5 | D5: 3
A6: 4 | B6: Atención de reclamos por daños en artefactos eléctricos | C6: 120 | D6: 3
A7: 7 | B7: Atención de servicios de geoinformación para contratistas | C7: 365 | D7: 3
A8: 2 | B8: Aplicación del Subsidio de Discapacidad en el servicio de energía eléctrica | C8: 1101 | D8: 3
A9: 13 | B9: Desconexión definitiva del servicio de energía eléctrica | C9: 1145 | D9: 3
A10: 14 | B10: Instalación de servicio ocasional o eventual de energía eléctrica | C10: 2932 | D10: 6
A11: 3 | B11: Aplicación del Subsidio del Adulto Mayor en el servicio de energía eléctrica | C11: 4943 | D11: 6
A12: 10 | B12: Cambio de tarifa del servicio de energía eléctrica | C12: 4966 | D12: 6
A13: 16 | B13: Reubicación de medidor de energía eléctrica | C13: 5302 | D13: 6
A14: 6 | B14: Atención de requerimientos del servicio de alumbrado público general | C14: 7300 | D14: 6
A15: 15 | B15: Instalación de un nuevo servicio de energía eléctrica | C15: 11929 | D15: 10
A16: 9 | B16: Cambio de nombre del titular del servicio de energía eléctrica | C16: 12481 | D16: 10
A17: 5 | B17: Atención de reclamos por falta o deficiencia del servicio de energía eléctrica | C17: 21900 | D17: 10
A18: 11 | B18: Consulta de cuenta contrato del servicio de energía eléctrica | C18: 71626 | D18: 10
A19: 1 | B19: Actualización de datos del cliente del servicio de energía eléctrica | C19: 185503 | D19: 10
A20: 12 | B20: Consulta de valores a pagar por el servicio de energía eléctrica | C20: 198208 | D20: 10

Sheet VOLUMEN DE QUEJAS
A1: PRIORIZACIÓN DE TRÁMITES ADMINISTRATIVOS
A2: VOLUMEN DE QUEJAS
A4: IDENTIFICADOR | B4: TRÁMITE | C4: VOLUMEN DEMANDA | D4: VOLUMEN DE QUEJAS | E4: PORCENTAJE | F4: PUNTUACIÓN
A5: 8 | B5: Atención de solicitudes de acceso a la información pública | C5: 5 | D5: 0 | E5: 0 | F5: 0
A6: 4 | B6: Atención de reclamos por daños en artefactos eléctricos | C6: 120 | D6: 36 | E6: 30 | F6: 10
A7: 7 | B7: Atención de servicios de geoinformación para contratistas | C7: 365 | D7: 0 | E7: 0 | F7: 0
A8: 2 | B8: Aplicación del Subsidio de Discapacidad en el servicio de energía eléctrica | C8: 1101 | D8: 8 | E8: 0.7266121708 | F8: 4
A9: 13 | B9: Desconexión definitiva del servicio de energía eléctrica | C9: 1145 | D9: 8 | E9: 0.6986899563 | F9: 4
A10: 14 | B10: Instalación de servicio ocasional o eventual de energía eléctrica | C10: 2932 | D10: 22 | E10: 0.7503410641 | F10: 4
A11: 3 | B11: Aplicación del Subsidio del Adulto Mayor en el servicio de energía eléctrica | C11: 4943 | D11: 37 | E11: 0.7485332794 | F11: 4
A12: 10 | B12: Cambio de tarifa del servicio de energía eléctrica | C12: 4966 | D12: 37 | E12: 0.7450664519 | F12: 4
A13: 16 | B13: Reubicación de medidor de energía eléctrica | C13: 5302 | D13: 39 | E13: 0.7355714825 | F13: 4
A14: 6 | B14: Atención de requerimientos del servicio de alumbrado público general | C14: 7300 | D14: 1314 | E14: 18 | F14: 10
A15: 15 | B15: Instalación de un nuevo servicio de energía eléctrica | C15: 11929 | D15: 88 | E15: 0.7376980468 | F15: 4
A16: 9 | B16: Cambio de nombre del titular del servicio de energía eléctrica | C16: 12481 | D16: 92 | E16: 0.737120423 | F16: 4
A17: 5 | B17: Atención de reclamos por falta o deficiencia del servicio de energía eléctrica | C17: 21900 | D17: 3942 | E17: 18 | F17: 10
A18: 11 | B18: Consulta de cuenta contrato del servicio de energía eléctrica | C18: 71626 | D18: 530 | E18: 0.739954765 | F18: 4
A19: 1 | B19: Actualización de datos del cliente del servicio de energía eléctrica | C19: 185503 | D19: 1373 | E19: 0.740149755 | F19: 4
A20: 12 | B20: Consulta de valores a pagar por el servicio de energía eléctrica | C20: 198208 | D20: 1467 | E20: 0.7401315789 | F20: 4

Sheet COSTO ADMINISTRACIÓN PÚBLICA
A1: PRIORIZACIÓN DE TRÁMITES ADMINISTRATIVOS
A2: COSTOS PARA LA ADMINISTRACIÓN PÚBLICA
A4: IDENTIFICADOR | B4: TRÁMITE | C4: INSUMOS PARA COSTO | F4: COSTO PARA LA ADM. PÚBLICA | H4: SBU | I4: 400
C5: TIEMPO (HORAS) | D5: COSTO PERSONAL | E5: COSTO RECURSOS
A6: 8 | B6: Atención de solicitudes de acceso a la información pública | C6: 5.166666667 | D6: =C6*$I$4/160 -> 12.91666667 | E6: 0 | F6: =D6+E6 -> 12.91666667
A7: 4 | B7: Atención de reclamos por daños en artefactos eléctricos | C7: 5.5 | D7: =C7*$I$4/160 -> 13.75 | E7: 100 | F7: =D7+E7 -> 113.75
A8: 7 | B8: Atención de servicios de geoinformación para contratistas | C8: 0.3 | D8: 0.75 | E8: 0 | F8: 0.75
A9: 2 | B9: Aplicación del Subsidio de Discapacidad en el servicio de energía eléctrica | C9: 0.1666666667 | D9: 0.4166666667 | E9: 0 | F9: 0.4166666667
A10: 13 | B10: Desconexión definitiva del servicio de energía eléctrica | C10: 0.2333333333 | D10: 0.5833333333 | E10: 0 | F10: 0.5833333333
A11: 14 | B11: Instalación de servicio ocasional o eventual de energía eléctrica | C11: 1.4 | D11: 3.5 | E11: 0 | F11: 3.5
A12: 3 | B12: Aplicación del Subsidio del Adulto Mayor en el servicio de energía eléctrica | C12: 0.1666666667 | D12: 0.4166666667 | E12: 0 | F12: 0.4166666667
A13: 10 | B13: Cambio de tarifa del servicio de energía eléctrica | C13: 0.4333333333 | D13: 1.083333333 | E13: 0 | F13: 1.083333333
A14: 16 | B14: Reubicación de medidor de energía eléctrica | C14: 1.533333333 | D14: 3.833333333 | E14: 0 | F14: 3.833333333
A15: 6 | B15: Atención de requerimientos del servicio de alumbrado público general | C15: 3.1 | D15: 7.75 | E15: 60 | F15: 67.75
A16: 15 | B16: Instalación de un nuevo servicio de energía eléctrica | C16: 1.666666667 | D16: 4.166666667 | E16: 0 | F16: 4.166666667
A17: 9 | B17: Cambio de nombre del titular del servicio de energía eléctrica | C17: 0.25 | D17: 0.625 | E17: 0 | F17: 0.625
A18: 5 | B18: Atención de reclamos por falta o deficiencia del servicio de energía eléctrica | C18: 3.1 | D18: 7.75 | E18: 20 | F18: 27.75
A19: 11 | B19: Consulta de cuenta contrato del servicio de energía eléctrica | C19: 0.03333333333 | D19: 0.08333333333 | E19: 0 | F19: 0.08333333333
A20: 1 | B20: Actualización de datos del cliente del servicio de energía eléctrica | C20: 0.1166666667 | D20: 0.2916666667 | E20: 0 | F20: 0.2916666667
A21: 12 | B21: Consulta de valores a pagar por el servicio de energía eléctrica | C21: 0.03333333333 | D21: 0.08333333333 | E21: 0 | F21: 0.08333333333

Sheet RESUMEN DE COSTOS AP
A1: PRIORIZACIÓN DE TRÁMITES ADMINISTRATIVOS
A2: COSTOS PARA LA ADMINISTRACIÓN PÚBLICA
A4: IDENTIFICADOR | B4: TRÁMITE | C4: COSTO PARA LA ADM. PÚBLICA | D4: PUNTUACIÓN
A5: 8 | B5: Atención de solicitudes de acceso a la información pública | C5: 12.91666667 | D5: 5
A6: 4 | B6: Atención de reclamos por daños en artefactos eléctricos | C6: 113.75 | D6: 5
A7: 7 | B7: Atención de servicios de geoinformación para contratistas | C7: 0.75 | D7: 5
A8: 2 | B8: Aplicación del Subsidio de Discapacidad en el servicio de energía eléctrica | C8: 0.4166666667 | D8: 5
A9: 13 | B9: Desconexión definitiva del servicio de energía eléctrica | C9: 0.5833333333 | D9: 5
A10: 14 | B10: Instalación de servicio ocasional o eventual de energía eléctrica | C10: 3.5 | D10: 10
A11: 3 | B11: Aplicación del Subsidio del Adulto Mayor en el servicio de energía eléctrica | C11: 0.4166666667 | D11: 10
A12: 10 | B12: Cambio de tarifa del servicio de energía eléctrica | C12: 1.083333333 | D12: 10
A13: 16 | B13: Reubicación de medidor de energía eléctrica | C13: 3.833333333 | D13: 10
A14: 6 | B14: Atención de requerimientos del servicio de alumbrado público general | C14: 67.75 | D14: 10
A15: 15 | B15: Instalación de un nuevo servicio de energía eléctrica | C15: 4.166666667 | D15: 20
A16: 9 | B16: Cambio de nombre del titular del servicio de energía eléctrica | C16: 0.625 | D16: 20
A17: 5 | B17: Atención de reclamos por falta o deficiencia del servicio de energía eléctrica | C17: 27.75 | D17: 20
A18: 11 | B18: Consulta de cuenta contrato del servicio de energía eléctrica | C18: 0.08333333333 | D18: 20
A19: 1 | B19: Actualización de datos del cliente del servicio de energía eléctrica | C19: 0.2916666667 | D19: 20
A20: 12 | B20: Consulta de valores a pagar por el servicio de energía eléctrica | C20: 0.08333333333 | D20: 20

Sheet AUXILIAR COSTO ADMINISTRACIÓN
A2: TRÁMITE: | B2: Actualización de datos del cliente del servicio de energía eléctrica
A3: NO. | B3: ACTIVIDAD | C3: TIEMPO (HORAS)
A4: 1 | B4: Receptar información de cuenta contrato, proporcionada por el cliente | C4: =(1/60) -> 0.01666666667
A5: 2 | B5: Revisar en el sistema y validar la información existente o ingresar si se trata de nuevos datos. | C5: =(5/60) -> 0.08333333333 | D5: Se considera 5 minutos para clientes que ingresen información nueva de contacto
A6: 3 | B6: Notificar al cliente la actualización realizada. | C6: =(1/60) -> 0.01666666667
A7: 4
A8: 5
A9: 6
A10: 7
A11: 8
A12: 9
A13: 10
A14: 11
A15: 12
A16: 13
A17: 14
A18: 15
B20: SUMATORIA ACTIVIDADES | C20: =SUM(C4:C19) -> 0.1166666667
A22: TRÁMITE: | B22: Aplicación del Subsidio de Discapacidad en el servicio de energía eléctrica
A23: NO. | B23: ACTIVIDAD | C23: TIEMPO (HORAS)
A24: 1 | B24: Receptar y validar los documentos entregados por el cliente. | C24: =3/60 -> 0.05
A25: 2 | B25: Ingresar en el sistema la información y generar el "Formulario de Aplicación de Subsidio de la Ley de Discapacidad" | C25: =5/60 -> 0.08333333333
A26: 3 | B26: Recibir el formulario con la firma del propietario o representante. | C26: =2/60 -> 0.03333333333
A27: 4
A28: 5
A29: 6
A30: 7
A31: 8
A32: 9
A33: 10
A34: 11
A35: 12
A36: 13
A37: 14
A38: 15
B40: SUMATORIA ACTIVIDADES | C40: =SUM(C24:C39) -> 0.1666666667
A42: TRÁMITE: | B42: Aplicación del Subsidio del Adulto Mayor en el servicio de energía eléctrica
A43: NO. | B43: ACTIVIDAD | C43: TIEMPO (HORAS)
A44: 1 | B44: Receptar y validar los documentos entregados por el cliente. | C44: =3/60 -> 0.05
A45: 2 | B45: Ingresar la información en el sistema comercial y generar el "Formulario de Aplicación de Subsidio de la Ley de del Anciano" | C45: =5/60 -> 0.08333333333
A46: 3 | B46: Recibir el formulario con la firma del propietario. | C46: =2/60 -> 0.03333333333
A47: 4
A48: 5
A49: 6
A50: 7
A51: 8
A52: 9
A53: 10
A54: 11
A55: 12
A56: 13
A57: 14
A58: 15
B60: SUMATORIA ACTIVIDADES | C60: =SUM(C44:C59) -> 0.1666666667
A62: TRÁMITE: | B62: Atención de reclamos por daños en artefactos eléctricos
A63: NO. | B63: ACTIVIDAD | C63: TIEMPO (HORAS)
A64: 1 | B64: Receptar el reclamo | C64: 0.5
A65: 2 | B65: Validar del reclamo | C65: 2
A66: 3 | B66: Visitar domicilio | C66: 1
A67: 4 | B67: Diagnosticar equipo dañado | C67: 1
A68: 5 | B68: Reponer equipo | C68: 1
A69: 6
A70: 7
A71: 8
A72: 9
A73: 10
A74: 11
A75: 12
A76: 13
A77: 14
A78: 15
B80: SUMATORIA ACTIVIDADES | C80: =SUM(C64:C79) -> 5.5
A82: TRÁMITE: | B82: Atención de reclamos por falta o deficiencia del servicio de energía eléctrica
A83: NO. | B83: ACTIVIDAD | C83: TIEMPO (HORAS)
A84: 1 | B84: Receptar reclamo | C84: 0.1
A85: 2 | B85: Despachar a grupo de reclamos | C85: 1
A86: 3 | B86: Reponer servicio | C86: 2
A87: 4
A88: 5
A89: 6
A90: 7
A91: 8
A92: 9
A93: 10
A94: 11
A95: 12
A96: 13
A97: 14
A98: 15
B100: SUMATORIA ACTIVIDADES | C100: =SUM(C84:C99) -> 3.1
A102: TRÁMITE: | B102: Atención de requerimientos del servicio de alumbrado público general
A103: NO. | B103: ACTIVIDAD | C103: TIEMPO (HORAS)
A104: 1 | B104: Recepción de la solicitud con la información solicitada en los requisitos. | C104: 0.1
A105: 2 | B105: Inspección en sitio y verificación de cumplimiento de requisitos. | C105: 1
A106: 3 | B106: Notificación de la viabilidad del trámite. En caso de ser favorable, será informado sobre: presupuesto de la obra, su alcance y de la inclusión en el plan de expansión del Sistema de Alumbrado Público General. Caso contrario, las razones por las cuales el trámite no es aceptado. | C106: 2
A107: 4
A108: 5
A109: 6
A110: 7
A111: 8
A112: 9
A113: 10
A114: 11
A115: 12
A116: 13
A117: 14
A118: 15
B120: SUMATORIA ACTIVIDADES | C120: =SUM(C104:C119) -> 3.1
A122: TRÁMITE: | B122: Atención de servicios de geoinformación para contratistas
A123: NO. | B123: ACTIVIDAD | C123: TIEMPO (HORAS)
A124: 1 | B124: Recepción de solicitud para descarga de archivos GPS. | C124: 0.1
A125: 2 | B125: Validación de la persona solicitante. | C125: 0.1
A126: 3 | B126: Notificación de aceptación incluido usuario y clave de acceso para el link. | C126: 0.1
A127: 4
A128: 5
A129: 6
A130: 7
A131: 8
A132: 9
A133: 10
A134: 11
A135: 12
A136: 13
A137: 14
A138: 15
B140: SUMATORIA ACTIVIDADES | C140: =SUM(C124:C139) -> 0.3
A142: TRÁMITE: | B142: Atención de solicitudes de acceso a la información pública
A143: NO. | B143: ACTIVIDAD | C143: TIEMPO (HORAS)
A144: 1 | B144: Identificar al funcionario responsable del reporte, en base al requerimiento realizado | C144: =10/60 -> 0.1666666667
A145: 2 | B145: Preparar la información solicitada | C145: 3
A146: 3 | B146: Generar oficio y tramitar la información | C146: 2
A147: 4
A148: 5
A149: 6
A150: 7
A151: 8
A152: 9
A153: 10
A154: 11
A155: 12
A156: 13
A157: 14
A158: 15
B160: SUMATORIA ACTIVIDADES | C160: =SUM(C144:C159) -> 5.166666667
A162: TRÁMITE: | B162: Cambio de nombre del titular del servicio de energía eléctrica
A163: NO. | B163: ACTIVIDAD | C163: TIEMPO (HORAS)
A164: 1 | B164: Receptar y validar información | C164: =4/60 -> 0.06666666667
A165: 2 | B165: Generar la orden de inspección | C165: =6/60 -> 0.1
A166: 3 | B166: Cerrar en el sistema la orden con la lectura tomada en sitio y generar planilla de liquidación. | C166: =5/60 -> 0.08333333333
A167: 4 | B167: Emitir planilla de servicio de energía con nombre del nuevo titular. | C167: 0 | D167: proceso automático
A168: 5
A169: 6
A170: 7
A171: 8
A172: 9
A173: 10
A174: 11
A175: 12
A176: 13
A177: 14
A178: 15
B180: SUMATORIA ACTIVIDADES | C180: =SUM(C164:C179) -> 0.25
A182: TRÁMITE: | B182: Cambio de tarifa del servicio de energía eléctrica
A183: NO. | B183: ACTIVIDAD | C183: TIEMPO (HORAS)
A184: 1 | B184: Receptar los requisitos solicitados al cliente. | C184: =2/60 -> 0.03333333333
A185: 2 | B185: Ingresar en el sistema | C185: =4/60 -> 0.06666666667
A186: 3 | B186: Realizar la inspección en sitio, para verificar la tarifa solicitada | C186: =20/60 -> 0.3333333333
A187: 4 | B187: En la siguiente planilla se verá reflejada la nueva tarifa. | C187: 0
A188: 5
A189: 6
A190: 7
A191: 8
A192: 9
A193: 10
A194: 11
A195: 12
A196: 13
A197: 14
A198: 15
B200: SUMATORIA ACTIVIDADES | C200: =SUM(C184:C199) -> 0.4333333333
A202: TRÁMITE: | B202: Consulta de cuenta contrato del servicio de energía eléctrica
A203: NO. | B203: ACTIVIDAD | C203: TIEMPO (HORAS)
A204: 1 | B204: Receptar la información del propietario y/o número de medidor, relacionado al servicio de energía eléctrica. | C204: =1/60 -> 0.01666666667
A205: 2 | B205: Entregar cuenta contrato al cliente | C205: =1/60 -> 0.01666666667
A206: 3
A207: 4
A208: 5
A209: 6
A210: 7
A211: 8
A212: 9
A213: 10
A214: 11
A215: 12
A216: 13
A217: 14
A218: 15
B220: SUMATORIA ACTIVIDADES | C220: =SUM(C204:C219) -> 0.03333333333
A222: TRÁMITE: | B222: Consulta de valores a pagar por el servicio de energía eléctrica
A223: NO. | B223: ACTIVIDAD | C223: TIEMPO (HORAS)
... 88 more rows

Sheet TIEMPO DE RESPUESTA
A1: PRIORIZACIÓN DE TRÁMITES ADMINISTRATIVOS
A2: TIEMPO DE RESPUESTA
A4: IDENTIFICADOR | B4: TRÁMITE | C4: TIEMPO RESPUESTA (horas laborables) | D4: PUNTUACIÓN
A5: 8 | B5: Atención de solicitudes de acceso a la información pública | C5: 20 | D5: 0
A6: 4 | B6: Atención de reclamos por daños en artefactos eléctricos | C6: 40 | D6: 0
A7: 7 | B7: Atención de servicios de geoinformación para contratistas | C7: 1 | D7: 0
A8: 2 | B8: Aplicación del Subsidio de Discapacidad en el servicio de energía eléctrica | C8: 0.1 | D8: 0
A9: 13 | B9: Desconexión definitiva del servicio de energía eléctrica | C9: 32 | D9: 0
A10: 14 | B10: Instalación de servicio ocasional o eventual de energía eléctrica | C10: 24 | D10: 0
A11: 3 | B11: Aplicación del Subsidio del Adulto Mayor en el servicio de energía eléctrica | C11: 0.1 | D11: 0
A12: 10 | B12: Cambio de tarifa del servicio de energía eléctrica | C12: 32 | D12: 0
A13: 16 | B13: Reubicación de medidor de energía eléctrica | C13: 32 | D13: 0
A14: 6 | B14: Atención de requerimientos del servicio de alumbrado público general | C14: 3.8 | D14: 0
A15: 15 | B15: Instalación de un nuevo servicio de energía eléctrica | C15: 40 | D15: 0
A16: 9 | B16: Cambio de nombre del titular del servicio de energía eléctrica | C16: 32 | D16: 0
A17: 5 | B17: Atención de reclamos por falta o deficiencia del servicio de energía eléctrica | C17: 3.8 | D17: 0
A18: 11 | B18: Consulta de cuenta contrato del servicio de energía eléctrica | C18: 0.06666666667 | D18: 0
A19: 1 | B19: Actualización de datos del cliente del servicio de energía eléctrica | C19: 0.08333333333 | D19: 0
A20: 12 | B20: Consulta de valores a pagar por el servicio de energía eléctrica | C20: 0.06666666667 | D20: 0

Sheet CANAL ATENCIÓN
A1: PRIORIZACIÓN DE TRÁMITES ADMINISTRATIVOS
A2: CANAL DE ATENCIÓN
I3: Totalmente en Línea | L3: 0
A4: IDENTIFICADOR | B4: TRÁMITE | C4: CANAL ATENCIÓN | D4: PUNTUACIÓN | I4: No se completa totalmente en línea. | L4: 10
A5: 8 | B5: Atención de solicitudes de acceso a la información pública | C5: Totalmente en Línea | D5: =IF(ISBLANK(C5),"",IF(C5="Totalmente en línea",0,IF(C5="Inicia en línea",6,10))) -> 0
A6: 4 | B6: Atención de reclamos por daños en artefactos eléctricos | C6: No se completa totalmente en línea. | D6: =IF(ISBLANK(C6),"",IF(C6="Totalmente en línea",0,IF(C6="Inicia en línea",6,10))) -> 10
A7: 7 | B7: Atención de servicios de geoinformación para contratistas | C7: Totalmente en Línea | D7: 0
A8: 2 | B8: Aplicación del Subsidio de Discapacidad en el servicio de energía eléctrica | C8: No se completa totalmente en línea. | D8: 10
A9: 13 | B9: Desconexión definitiva del servicio de energía eléctrica | C9: No se completa totalmente en línea. | D9: 10
A10: 14 | B10: Instalación de servicio ocasional o eventual de energía eléctrica | C10: No se completa totalmente en línea. | D10: 10
A11: 3 | B11: Aplicación del Subsidio del Adulto Mayor en el servicio de energía eléctrica | C11: No se completa totalmente en línea. | D11: 10
A12: 10 | B12: Cambio de tarifa del servicio de energía eléctrica | C12: Totalmente en Línea | D12: 0
A13: 16 | B13: Reubicación de medidor de energía eléctrica | C13: Totalmente en Línea | D13: 0
A14: 6 | B14: Atención de requerimientos del servicio de alumbrado público general | C14: Totalmente en Línea | D14: 0
A15: 15 | B15: Instalación de un nuevo servicio de energía eléctrica | C15: No se completa totalmente en línea. | D15: 10
A16: 9 | B16: Cambio de nombre del titular del servicio de energía eléctrica | C16: No se completa totalmente en línea. | D16: 10
A17: 5 | B17: Atención de reclamos por falta o deficiencia del servicio de energía eléctrica | C17: Totalmente en Línea | D17: 0
A18: 11 | B18: Consulta de cuenta contrato del servicio de energía eléctrica | C18: Totalmente en Línea | D18: 0
A19: 1 | B19: Actualización de datos del cliente del servicio de energía eléctrica | C19: Totalmente en Línea | D19: 0
A20: 12 | B20: Consulta de valores a pagar por el servicio de energía eléctrica | C20: Totalmente en Línea | D20: 0

Sheet RESUMEN
C1: BÁSICOS | H1: ADICIONALES
A2: ID trámite | B2: Nombre del trámite | C2: Demanda | D2: Quejas | E2: Costo para administración | F2: Tiempo de respuesta | G2: Canal de atención | H2: Necesidades ciudadanas | J2: Susceptibilidad a corrupción | L2: Volumen de devoluciones | N2: PUNTAJE TOTAL
H3: Criterio | I3: Puntuación | J3: Criterio | K3: Puntuación | L3: Criterio | M3: Puntuación | U3: demanda | V3: 0 | W3: 3 | X3: 6 | Y3: 10
A4: 8 | B4: Atención de solicitudes de acceso a la información pública | C4: 3 | D4: 0 | E4: 5 | F4: 0 | G4: 0 | H4: NO | I4: =IF(H4="SI",5,0) -> 0 | J4: NO | K4: =IF(J4="SI",10,0) -> 0 | L4: NO | M4: =IF(L4="SI",5,0) -> 0 | N4: =SUM(C4:G4,I4,K4,M4) -> 8 | U4: quejas | V4: 0 | W4: 4 | X4: 10
A5: 4 | B5: Atención de reclamos por daños en artefactos eléctricos | C5: 3 | D5: 10 | E5: 5 | F5: 0 | G5: 10 | H5: NO | I5: =IF(H5="SI",5,0) -> 0 | J5: NO | K5: =IF(J5="SI",10,0) -> 0 | L5: NO | M5: =IF(L5="SI",5,0) -> 0 | N5: =SUM(C5:G5,I5,K5,M5) -> 28 | U5: cpa | V5: 5 | W5: 10 | X5: 20
A6: 7 | B6: Atención de servicios de geoinformación para contratistas | C6: 3 | D6: 0 | E6: 5 | F6: 0 | G6: 0 | H6: NO | I6: 0 | J6: NO | K6: 0 | L6: NO | M6: 0 | N6: 8 | U6: tr | V6: 0 | W6: 30
A7: 2 | B7: Aplicación del Subsidio de Discapacidad en el servicio de energía eléctrica | C7: 3 | D7: 4 | E7: 5 | F7: 0 | G7: 10 | H7: NO | I7: 0 | J7: NO | K7: 0 | L7: NO | M7: 0 | N7: 22 | U7: ca | V7: 0 | W7: 10
A8: 13 | B8: Desconexión definitiva del servicio de energía eléctrica | C8: 3 | D8: 4 | E8: 5 | F8: 0 | G8: 10 | H8: NO | I8: 0 | J8: NO | K8: 0 | L8: NO | M8: 0 | N8: 22 | V8: SI | W8: NO
A9: 14 | B9: Instalación de servicio ocasional o eventual de energía eléctrica | C9: 6 | D9: 4 | E9: 10 | F9: 0 | G9: 10 | H9: NO | I9: 0 | J9: NO | K9: 0 | L9: NO | M9: 0 | N9: 30
A10: 3 | B10: Aplicación del Subsidio del Adulto Mayor en el servicio de energía eléctrica | C10: 6 | D10: 4 | E10: 10 | F10: 0 | G10: 10 | H10: NO | I10: 0 | J10: NO | K10: 0 | L10: NO | M10: 0 | N10: 30
A11: 10 | B11: Cambio de tarifa del servicio de energía eléctrica | C11: 6 | D11: 4 | E11: 10 | F11: 0 | G11: 0 | H11: NO | I11: 0 | J11: NO | K11: 0 | L11: NO | M11: 0 | N11: 20
A12: 16 | B12: Reubicación de medidor de energía eléctrica | C12: 6 | D12: 4 | E12: 10 | F12: 0 | G12: 0 | H12: NO | I12: 0 | J12: NO | K12: 0 | L12: NO | M12: 0 | N12: 20
A13: 6 | B13: Atención de requerimientos del servicio de alumbrado público general | C13: 6 | D13: 10 | E13: 10 | F13: 0 | G13: 0 | H13: NO | I13: 0 | J13: NO | K13: 0 | L13: NO | M13: 0 | N13: 26
A14: 15 | B14: Instalación de un nuevo servicio de energía eléctrica | C14: 10 | D14: 4 | E14: 20 | F14: 0 | G14: 10 | H14: NO | I14: 0 | J14: NO | K14: 0 | L14: NO | M14: 0 | N14: 44
A15: 9 | B15: Cambio de nombre del titular del servicio de energía eléctrica | C15: 10 | D15: 4 | E15: 20 | F15: 0 | G15: 10 | H15: NO | I15: 0 | J15: NO | K15: 0 | L15: NO | M15: 0 | N15: 44
A16: 5 | B16: Atención de reclamos por falta o deficiencia del servicio de energía eléctrica | C16: 10 | D16: 10 | E16: 20 | F16: 0 | G16: 0 | H16: NO | I16: 0 | J16: NO | K16: 0 | L16: NO | M16: 0 | N16: 40
A17: 11 | B17: Consulta de cuenta contrato del servicio de energía eléctrica | C17: 10 | D17: 4 | E17: 20 | F17: 0 | G17: 0 | H17: NO | I17: 0 | J17: NO | K17: 0 | L17: NO | M17: 0 | N17: 34
A18: 1 | B18: Actualización de datos del cliente del servicio de energía eléctrica | C18: 10 | D18: 4 | E18: 20 | F18: 0 | G18: 0 | H18: NO | I18: 0 | J18: NO | K18: 0 | L18: NO | M18: 0 | N18: 34
A19: 12 | B19: Consulta de valores a pagar por el servicio de energía eléctrica | C19: 10 | D19: 4 | E19: 20 | F19: 0 | G19: 0 | H19: NO | I19: 0 | J19: NO | K19: 0 | L19: NO | M19: 0 | N19: 34
